bitfinex/quotes_SOLUSD_20250714
["timestamp","ask_amount","ask_price","bid_price","bid_amount"]
[1752452331010,16.78468397,161.18,161.14,26.74]
[1752452331011,22.49128592,161.18,161.14,26.74]
[1752452331215,146.7,161.19,161.15,31.46]
[1752452331216,22.80148397,161.16,161.15,31.46]
[1752452331523,22.80148397,161.16,161.13,26.74]
[1752452331704,0.72,161.15,161.13,26.74]
[1752452331909,0.72,161.15,161.13,31.72660195]
[1752452332120,0.72,161.15,161.13,26.74]
[1752452332829,17.50468397,161.15,161.14,31.46]
[1752452333032,19.14808397,161.15,161.14,31.46]
[1752452337639,24.13468592,161.15,161.14,31.46]
[1752452338049,170.83468592,161.15,161.13,26.74]
[1752452338218,169.19128592,161.14,161.13,26.74]
[1752452338412,169.19128592,161.14,161.13,58.2]
[1752452338611,22.49128592,161.14,161.13,58.2]
[1752452338820,32.49128592,161.14,161.13,58.2]
[1752452341913,16.78468397,161.12,161.06,26.76]
[1752452342135,23.27138592,161.1,161.06,26.76]
[1752452342338,21.77128592,161.08,161.06,26.76]
[1752452342517,0.66,161.07,161.06,26.76]
[1752452343124,0.66,161.07,161.06,58.22]
[1752452343840,0.66,161.07,161.06,63.20660195]
[1752452344718,16.78468397,161.08,161.06,63.20660195]
[1752452344920,16.78468397,161.08,161.07,4.98660195]
[1752452345134,23.27138592,161.1,161.06,63.20660195]
[1752452345435,16.78468397,161.08,161.06,58.22]
[1752452345738,0.66,161.09,161.06,58.22]
[1752452345739,17.44468397,161.07,161.06,58.22]
[1752452348523,0.66,161.08,161.06,63.20660195]
[1752452348717,0.66,161.08,161.07,4.98660195]
[1752452349843,0.66,161.09,161.07,4.98660195]
[1752452350025,147.36,161.11,161.08,36.44660195]
[1752452350230,147.36,161.11,161.1,4.98660195]
[1752452350547,147.36,161.11,161.1,67.94660195]
[1752452350724,146.7,161.11,161.1,67.94660195]
[1752452351632,146.7,161.11,161.1,68.47660195]
[1752452351939,146.7,161.11,161.1,67.94660195]
[1752452355549,0.66,161.13,161.1,67.94660195]
[1752452355749,0.66,161.13,161.12,4.98660195]
[1752452355958,0.66,161.13,161.12,36.46660195]
[1752452357238,0.66,161.13,161.12,31.48]
[1752452357436,17.44468397,161.13,161.12,31.48]
[1752452357634,16.78468397,161.12,161.06,26.82]
[1752452357840,16.78468397,161.1,161.07,4.98660195]
[1752452358043,0.66,161.09,161.07,4.98660195]
[1752452358224,0.66,161.09,161.08,4.98660195]
[1752452358859,0.66,161.09,161.08,36.46660195]
[1752452360736,0.66,161.09,161.08,31.48]
[1752452362247,0.66,161.09,161.08,36.46660195]
[1752452362646,17.44468397,161.1,161.08,36.46660195]
[1752452362934,0.66,161.09,161.08,36.46660195]
[1752452363355,0.66,161.11,161.08,36.46660195]
[1752452363543,17.44468397,161.11,161.1,4.98660195]
[1752452363745,147.36,161.13,161.1,36.44660195]
[1752452363938,0.66,161.12,161.11,4.98660195]
[1752452364854,146.7,161.13,161.11,4.98660195]
[1752452365055,146.7,161.13,161.12,4.98660195]
[1752452365233,147.36,161.13,161.12,36.46660195]
[1752452365437,146.7,161.13,161.12,36.46660195]
[1752452365638,16.78468397,161.17,161.12,41.4532039]
[1752452365831,0.66,161.16,161.12,36.99660195]
[1752452367069,16.78468397,161.17,161.15,4.98660195]
[1752452367359,17.44468397,161.17,161.16,36.48660195]
[1752452367559,17.44468397,161.17,161.16,36.46660195]
[1752452370358,17.44468397,161.17,161.13,4.98660195]
[1752452370558,0.66,161.16,161.14,31.48]
[1752452371244,16.78468397,161.15,161.14,31.48]
[1752452371560,17.46468397,161.15,161.14,31.48]
[1752452372144,22.45128592,161.15,161.14,31.48]
[1752452374773,30.58258592,161.15,161.14,31.48]
[1752452374952,40.58258592,161.15,161.14,31.48]
[1752452375153,44.74072143,161.15,161.14,31.48]
[1752452376063,39.75411948,161.15,161.14,31.48]
[1752452376239,44.74072143,161.15,161.14,31.48]
[1752452376441,44.77072143,161.15,161.14,31.48]
[1752452377066,34.77072143,161.15,161.14,31.48]
[1752452377240,19.07168397,161.15,161.14,31.48]
[1752452377953,17.49468397,161.15,161.14,31.48]
[1752452381969,22.48128592,161.15,161.14,31.48]
[1752452382143,26.64345845,161.15,161.14,31.48]
[1752452384170,36.64345845,161.15,161.14,31.48]
[1752452384553,26.64345845,161.15,161.14,31.48]
[1752452384747,36.64345845,161.15,161.14,31.48]
[1752452385976,55.25345845,161.15,161.14,31.48]
[1752452386674,45.25345845,161.15,161.14,31.48]
[1752452386860,55.25345845,161.15,161.14,31.48]
[1752452388670,59.88010821,161.15,161.14,31.48]
[1752452389073,59.38010821,161.15,161.14,31.48]
[1752452391163,59.38084374,161.15,161.14,31.48]
[1752452392279,16.78468397,161.11,161.06,26.82]
[1752452392572,16.78468397,161.07,161.06,26.82]
[1752452392750,169.09128592,161.07,161.06,58.3]
[1752452394276,22.45128592,161.07,161.06,58.3]
[1752452396980,17.46468397,161.07,161.06,58.3]
[1752452397781,17.46468397,161.07,161.06,26.82]
[1752452398073,17.46468397,161.07,161.06,58.3]
[1752452398271,17.46468397,161.07,161.06,26.82]
[1752452398272,22.45128592,161.07,161.06,26.82]
[1752452398486,22.45128592,161.07,161.06,58.3]
[1752452399777,32.45128592,161.07,161.06,58.3]
[1752452403070,63.35204703,161.07,161.06,58.3]
[1752452403971,16.78468397,161.01,160.99,0.06]
[1752452404168,4.98660195,161.0,160.99,0.06]
[1752452404384,5.67660195,161.0,160.99,0.06]
[1752452405271,0.69,161.0,160.99,31.56]
[1752452405682,22.46128592,161.01,160.99,31.56]
[1752452405865,27.49422942,161.01,160.99,31.56]
[1752452406064,16.78468397,161.01,160.99,31.56]
[1752452407272,21.85095822,161.01,160.99,31.56]
[1752452407473,22.54095822,161.01,160.99,31.56]
[1752452407794,26.83756017,161.01,160.99,31.56]
[1752452407988,0.69,161.0,160.99,31.56]
[1752452408783,22.46128592,161.0,160.99,31.56]
[1752452409290,169.16128592,161.0,160.99,31.56]
[1752452409889,164.17468397,161.0,160.99,31.56]
[1752452411284,169.16128592,161.0,160.99,31.56]
[1752452411688,179.16128592,161.0,160.99,31.56]
[1752452412672,32.46128592,161.0,160.99,31.56]
[1752452412872,22.46128592,161.0,160.99,31.56]
[1752452413076,32.46128592,161.0,160.99,31.56]
[1752452413879,22.46128592,161.0,160.99,31.56]
[1752452414076,16.78468397,161.0,160.99,31.56]
[1752452414590,17.47468397,161.0,160.99,31.56]
[1752452414889,32.46128592,161.0,160.99,31.56]
[1752452415464,17.47468397,161.0,160.99,31.56]
[1752452415679,32.46128592,161.0,160.99,31.56]
[1752452416984,21.77128592,161.0,160.99,31.56]
[1752452417176,22.46128592,161.0,160.99,31.56]
[1752452417372,16.78468397,161.0,160.99,31.56]
[1752452417588,16.78468397,161.0,160.96,5.19660195]
[1752452417889,146.7,160.99,160.96,5.19660195]
[1752452418596,163.48468397,160.99,160.98,4.98660195]
[1752452419288,16.78468397,161.03,160.98,4.98660195]
[1752452419495,146.7,161.04,161.02,4.98660195]
[1752452419688,163.48468397,161.04,161.03,68.04660195]
[1752452419897,163.48468397,161.04,161.03,63.06]
[1752452420075,163.48468397,161.04,161.03,68.25660195]
[1752452420397,163.48468397,161.04,161.03,68.04660195]
[1752452422096,163.48468397,161.04,161.03,63.06]
[1752452422399,163.48468397,161.04,161.03,68.04660195]
[1752452422775,163.48468397,161.04,161.03,68.25660195]
[1752452423105,146.7,161.04,161.03,68.25660195]
[1752452423272,146.7,161.04,161.03,69.85480195]
[1752452425077,16.78468397,161.03,161.01,4.98660195]
[1752452425288,16.78468397,161.03,161.02,31.52]
[1752452425493,16.78468397,161.03,161.02,36.50660195]
[1752452428209,16.78468397,161.03,161.02,36.71660195]
[1752452428799,16.78468397,161.03,161.02,36.50660195]
[1752452430717,17.47468397,161.03,161.02,31.5]
[1752452431909,16.78468397,161.03,161.02,31.5]
[1752452432915,17.46468397,161.03,161.02,31.5]
[1752452435915,22.45128592,161.03,161.02,31.5]
[1752452436412,17.46468397,161.03,161.02,31.5]
[1752452437494,16.78468397,161.03,161.02,31.5]
[1752452437697,16.78468397,161.03,161.02,36.48660195]
[1752452438508,16.78468397,161.03,161.02,31.5]
[1752452438691,17.46468397,161.03,161.02,31.5]
[1752452439713,16.78468397,161.03,161.02,31.5]
[1752452440010,16.78468397,161.03,161.02,36.48660195]
[1752452441216,147.38,161.08,161.02,36.69660195]
[1752452441393,16.78468397,161.07,161.03,0.21]
[1752452441594,16.78468397,161.07,161.06,4.98660195]
[1752452441910,16.78468397,161.07,161.06,36.48660195]
[1752452448529,17.46468397,161.07,161.06,31.5]
[1752452451626,17.46468397,161.07,161.06,36.48660195]
[1752452451823,16.78468397,161.07,161.06,36.48660195]
[1752452452413,146.7,161.08,161.06,36.48660195]
[1752452452603,163.48468397,161.08,161.07,4.98660195]
[1752452453226,163.48468397,161.08,161.06,31.5]
[1752452453424,163.48468397,161.08,161.07,4.98660195]
[1752452462025,146.7,161.08,161.07,5.19660195]
[1752452463604,146.7,161.08,161.07,4.98660195]
[1752452465132,16.78468397,161.1,161.07,4.98660195]
[1752452465432,16.78468397,161.1,161.09,4.98660195]
[1752452465938,17.45468397,161.1,161.09,4.98660195]
[1752452466140,0.03,161.11,161.09,5.19660195]
[1752452466310,0.03,161.11,161.1,68.11660195]
[1752452467408,0.03,161.11,161.1,67.90660195]
[1752452467937,0.03,161.11,161.1,68.11660195]
[1752452468126,0.03,161.11,161.1,4.98660195]
[1752452468323,0.03,161.11,161.1,36.48660195]
[1752452470309,0.7,161.11,161.1,36.48660195]
[1752452471457,0.03,161.11,161.1,36.48660195]
[1752452472737,0.7,161.11,161.1,36.48660195]
[1752452473323,17.48468397,161.11,161.1,31.5]
[1752452473947,163.48468397,161.1,161.03,31.76660195]
[1752452474133,21.77128592,161.08,161.04,31.54]
[1752452474449,5.65660195,161.07,161.04,31.54]
[1752452474640,4.98660195,161.07,161.04,31.54]
[1752452474820,16.78468397,161.05,161.04,31.54]
[1752452475024,17.45468397,161.05,161.04,31.54]
[1752452475422,17.45468397,161.05,161.04,36.52660195]
[1752452475949,16.78468397,161.06,161.04,36.52660195]
[1752452476120,0.67,161.06,161.05,4.98660195]
[1752452476819,16.78468397,161.08,161.05,4.98660195]
[1752452477034,16.78468397,161.08,161.06,36.52660195]
[1752452477232,0.67,161.07,161.06,36.52660195]
[1752452477419,147.37,161.09,161.06,36.52660195]
[1752452477627,164.15468397,161.09,161.08,4.98660195]
[1752452477923,164.15468397,161.09,161.08,36.52660195]
[1752452478342,163.48468397,161.09,161.08,36.52660195]
[1752452479155,146.7,161.09,161.08,36.52660195]
[1752452480147,16.81468397,161.11,161.08,36.73660195]
[1752452480148,0.03,161.11,161.08,36.73660195]
[1752452480329,0.03,161.11,161.1,4.98660195]
[1752452480528,0.03,161.11,161.1,36.52660195]
[1752452480845,0.03,161.11,161.1,31.54]
[1752452481051,0.03,161.11,161.1,36.52660195]
[1752452482661,0.7,161.11,161.1,36.52660195]
[1752452482830,0.03,161.11,161.1,36.52660195]
[1752452483262,0.7,161.11,161.1,36.52660195]
[1752452483630,0.03,161.11,161.1,36.52660195]
[1752452484125,0.7,161.11,161.1,31.54]
[1752452485234,0.7,161.11,161.03,28.2935]
[1752452485235,11.77020195,161.11,161.03,26.78]
[1752452485436,21.77128592,161.09,161.04,36.52660195]
[1752452485764,16.78468397,161.07,161.04,31.54]
[1752452485964,16.78468397,161.05,161.04,31.54]
[1752452486131,0.67,161.05,161.04,31.54]
[1752452486453,0.67,161.05,161.04,36.52660195]
[1752452486833,17.45468397,161.05,161.04,31.54]
[1752452487352,16.78468397,161.04,161.03,26.78]
[1752452487558,0.67,161.04,161.03,58.32]
[1752452490551,16.78468397,161.06,161.03,63.30660195]
[1752452490760,16.78468397,161.06,161.05,4.98660195]
[1752452490954,16.78468397,161.06,161.05,68.06660195]
[1752452491353,146.7,161.07,161.05,68.06660195]
[1752452491548,163.48468397,161.07,161.06,4.98660195]
[1752452492148,164.17468397,161.07,161.06,4.98660195]
[1752452493954,163.48468397,161.07,161.06,4.98660195]
[1752452494160,164.17468397,161.07,161.06,4.98660195]
[1752452494745,163.48468397,161.07,161.06,4.98660195]
[1752452497564,163.48468397,161.07,161.03,26.99]
[1752452497565,164.17468397,161.07,161.03,26.78]
[1752452497743,22.46128592,161.06,161.04,31.52]
[1752452497943,164.17468397,161.05,161.04,31.52]
[1752452498757,16.78468397,161.04,161.03,26.78]
[1752452498970,22.46128592,161.04,161.03,58.3]
[1752452500238,17.47468397,161.04,161.03,58.3]
[1752452502741,22.46128592,161.04,161.03,58.3]
[1752452503263,17.47468397,161.04,161.03,58.3]
[1752452505775,17.47468397,161.07,161.03,58.3]
[1752452505958,16.78468397,161.07,161.04,4.98660195]
[1752452506275,0.69,161.06,161.05,31.52]
[1752452506950,17.47468397,161.06,161.05,31.52]
[1752452507750,17.47468397,161.06,161.05,36.50660195]
[1752452508176,16.78468397,161.06,161.05,36.50660195]
[1752452508989,17.47468397,161.06,161.05,36.50660195]
[1752452509361,17.47468397,161.06,161.05,31.52]
[1752452510295,16.78468397,161.05,161.03,26.78]
[1752452510470,17.47468397,161.05,161.04,31.5]
[1752452513059,17.47468397,161.07,161.04,36.48660195]
[1752452513259,0.69,161.06,161.04,36.48660195]
[1752452515086,16.78468397,161.07,161.05,4.98660195]
[1752452515261,16.78468397,161.07,161.06,36.48660195]
[1752452517288,146.7,161.08,161.06,36.69660195]
[1752452517487,0.03,161.09,161.07,5.19660195]
[1752452517702,0.03,161.09,161.08,36.48660195]
[1752452518713,0.03,161.09,161.08,36.69660195]
[1752452520921,0.03,161.09,161.08,36.48660195]
[1752452521106,0.03,161.09,161.08,36.50660195]
[1752452521888,0.03,161.09,161.08,36.71660195]
[1752452525399,0.03,161.09,161.08,36.50660195]
[1752452526098,0.03,161.09,161.08,36.71660195]
[1752452527928,0.03,161.09,161.08,36.50660195]
[1752452529211,0.03,161.09,161.08,36.71660195]
[1752452529610,0.03,161.09,161.08,36.50660195]
[1752452534346,0.03,161.09,161.08,36.71660195]
[1752452534938,0.03,161.11,161.08,36.71660195]
[1752452535152,0.03,161.11,161.1,4.98660195]
[1752452535327,0.03,161.11,161.1,36.48660195]
[1752452535638,0.03,161.11,161.1,36.69660195]
[1752452537416,0.03,161.11,161.1,41.6832039]
[1752452537931,0.03,161.11,161.1,36.69660195]
[1752452538136,0.03,161.11,161.1,41.6832039]
[1752452538332,0.03,161.11,161.1,36.69660195]
[1752452544850,0.03,161.11,161.1,36.48660195]
[1752452549931,0.03,161.15,161.1,41.6832039]
[1752452550252,0.03,161.15,161.14,4.98660195]
[1752452550436,0.03,161.15,161.14,36.46660195]
[1752452552453,0.75,161.15,161.14,36.46660195]
[1752452553325,0.75,161.15,161.14,31.48]
[1752452553532,17.53468397,161.15,161.14,31.48]
[1752452562832,0.03,161.15,161.14,36.46660195]
[1752452565057,0.03,161.15,161.14,36.67660195]
[1752452565954,0.03,161.15,161.14,36.46660195]
[1752452566153,0.03,161.15,161.14,31.48]
[1752452566361,0.03,161.15,161.14,36.46660195]
[1752452569751,0.75,161.15,161.14,36.46660195]
[1752452569953,0.03,161.15,161.14,36.46660195]
[1752452571965,0.75,161.15,161.14,36.46660195]
[1752452572769,0.03,161.15,161.14,36.46660195]
[1752452573353,0.75,161.15,161.14,36.46660195]
[1752452574542,0.03,161.15,161.14,36.46660195]
[1752452574748,0.75,161.15,161.14,36.46660195]
[1752452575446,17.53468397,161.15,161.14,36.46660195]
[1752452576076,17.53468397,161.15,161.14,31.48]
[1752452577860,22.52128592,161.15,161.14,31.48]
[1752452578256,163.48468397,161.14,161.11,26.82]
[1752452578579,4.98660195,161.12,161.11,26.82]
[1752452578780,4.98660195,161.12,161.11,58.28]
[1752452578960,5.70660195,161.12,161.11,58.28]
[1752452579155,0.72,161.12,161.11,58.28]
[1752452592367,147.39,161.14,161.11,63.26660195]
[1752452592589,16.78468397,161.13,161.11,58.28]
[1752452592791,16.78468397,161.13,161.12,4.98660195]
[1752452593393,146.7,161.14,161.12,4.98660195]
[1752452593593,146.7,161.14,161.13,36.44660195]
[1752452593594,163.48468397,161.14,161.13,36.44660195]
[1752452595797,164.17468397,161.14,161.13,36.44660195]
[1752452596605,163.48468397,161.14,161.13,36.44660195]
[1752452598277,146.7,161.14,161.13,36.65660195]
[1752452599714,146.7,161.14,161.13,31.67]
[1752452599889,146.7,161.14,161.13,36.44660195]
[1752452600384,0.03,161.15,161.13,36.65660195]
[1752452600589,0.03,161.15,161.14,4.98660195]
[1752452603889,0.03,161.15,161.13,31.46]
[1752452604087,0.03,161.15,161.14,4.98660195]
[1752452604291,0.72,161.15,161.14,4.98660195]
[1752452609679,0.03,161.15,161.14,4.98660195]
[1752452609996,0.03,161.15,161.14,5.19660195]
[1752452614687,0.2,161.16,161.14,5.19660195]
[1752452614888,0.2,161.2,161.15,38.26750195]
[1752452615110,0.2,161.2,161.19,4.98660195]
[1752452615308,0.2,161.2,161.19,41.4132039]
[1752452615807,0.2,161.2,161.19,41.6232039]
[1752452616308,0.03,161.22,161.2,1.6309]
[1752452616513,0.03,161.22,161.21,36.44660195]
[1752452616697,0.03,161.22,161.21,36.65660195]
[1752452617098,0.03,161.22,161.21,31.67]
[1752452617492,0.03,161.22,161.21,36.65660195]
[1752452618616,146.7,161.29,161.22,4.98660195]
[1752452618788,146.7,161.29,161.28,4.98660195]
[1752452618988,147.38,161.29,161.28,36.46660195]
[1752452620199,147.38,161.29,161.28,31.48]
[1752452620395,147.38,161.29,161.28,36.46660195]
[1752452621196,164.16468397,161.29,161.28,36.46660195]
[1752452621624,164.16468397,161.29,161.28,31.48]
[1752452622095,164.16468397,161.29,161.28,36.46660195]
[1752452623495,163.48468397,161.29,161.28,36.46660195]
[1752452624300,164.16468397,161.29,161.28,36.46660195]
[1752452625403,164.16468397,161.29,161.28,63.20660195]
[1752452625805,146.7,161.29,161.28,63.20660195]
[1752452627113,147.38,161.29,161.28,63.20660195]
[1752452628215,146.7,161.29,161.28,63.20660195]
[1752452628912,147.38,161.29,161.28,63.20660195]
[1752452629428,146.7,161.29,161.28,63.20660195]
[1752452630510,17.66468397,161.31,161.28,63.20660195]
[1752452630700,17.66468397,161.31,161.3,4.98660195]
[1752452630901,0.2,161.31,161.3,31.48]
[1752452631113,0.2,161.31,161.3,36.67660195]
[1752452631532,0.2,161.31,161.3,31.48]
[1752452631715,0.88,161.31,161.3,26.74]
[1752452631909,17.66468397,161.31,161.3,26.74]
[1752452632104,17.66468397,161.31,161.3,31.72660195]
[1752452633036,17.66468397,161.31,161.3,63.24660195]
[1752452633404,17.66468397,161.31,161.3,58.26]
[1752452634031,22.65128592,161.31,161.3,58.26]
[1752452634253,17.66468397,161.31,161.3,58.26]
[1752452635531,22.65128592,161.31,161.3,58.26]
[1752452636523,17.66468397,161.31,161.3,58.26]
[1752452641628,0.2,161.31,161.3,63.24660195]
[1752452643430,0.2,161.31,161.3,63.45660195]
[1752452644285,0.2,161.31,161.3,63.24660195]
[1752452645338,0.2,161.31,161.3,63.45660195]
[1752452647763,0.03,161.38,161.3,63.45660195]
[1752452647960,0.03,161.38,161.31,0.21]
[1752452648173,0.03,161.38,161.37,4.98660195]
[1752452648337,0.74,161.38,161.37,31.74]
[1752452648739,0.03,161.38,161.37,31.74]
[1752452648956,0.03,161.38,161.37,36.72660195]
[1752452649460,0.71,161.38,161.37,31.74]
[1752452649761,0.71,161.38,161.37,36.72660195]
[1752452650362,16.78468397,161.39,161.37,36.72660195]
[1752452650579,17.49468397,161.39,161.38,4.98660195]
[1752452650949,0.71,161.38,161.37,36.72660195]
[1752452651458,16.78468397,161.39,161.37,36.72660195]
[1752452651668,138.48344,161.4,161.38,4.98660195]
[1752452651870,154.55812397,161.4,161.39,36.72660195]
[1752452652054,154.55812397,161.4,161.39,31.74]
[1752452652480,155.26812397,161.4,161.39,31.74]
[1752452653368,0.71,161.42,161.39,36.72660195]
[1752452653557,16.78468397,161.43,161.39,31.74]
[1752452653755,16.78468397,161.43,161.39,36.72660195]
[1752452654147,16.78468397,161.41,161.39,31.74]
[1752452654359,0.71,161.41,161.39,36.72660195]
[1752452654848,0.71,161.4,161.39,31.74]
[1752452655077,0.71,161.4,161.39,36.72660195]
[1752452655297,16.78468397,161.41,161.39,36.72660195]
[1752452655461,0.71,161.42,161.4,4.98660195]
[1752452655671,0.71,161.42,161.41,36.70660195]
[1752452656182,137.77344,161.44,161.41,36.70660195]
[1752452656475,137.77344,161.44,161.43,4.98660195]
[1752452656682,0.71,161.47,161.43,36.70660195]
[1752452656862,0.71,161.47,161.46,4.98660195]
[1752452657062,0.71,161.47,161.46,36.70660195]
[1752452657764,17.49468397,161.47,161.46,36.70660195]
[1752452658172,137.77344,161.48,161.46,36.70660195]
[1752452658350,17.49468397,161.48,161.47,4.98660195]
[1752452659180,16.78468397,161.47,161.46,4.98660195]
[1752452659384,17.49468397,161.47,161.46,31.76]
[1752452660071,22.48128592,161.47,161.46,31.76]
[1752452661984,17.49468397,161.47,161.46,31.76]
[1752452662482,17.49468397,161.47,161.46,36.74660195]
[1752452662685,16.78468397,161.48,161.46,31.76]
[1752452662866,0.71,161.48,161.46,36.74660195]
[1752452663470,16.78468397,161.48,161.47,4.98660195]
[1752452663956,0.71,161.48,161.46,31.76]
[1752452664155,17.49468397,161.47,161.46,36.74660195]
[1752452665372,16.78468397,161.47,161.46,36.74660195]
[1752452666365,17.49468397,161.47,161.46,31.76]
[1752452666772,16.78468397,161.47,161.46,36.74660195]
[1752452668267,17.49468397,161.47,161.46,31.76]
[1752452668993,22.48128592,161.47,161.46,31.76]
[1752452670479,24.00348592,161.47,161.46,31.76]
[1752452672782,30.39078592,161.47,161.46,31.76]
[1752452672991,40.39078592,161.47,161.46,31.76]
[1752452674201,35.40418397,161.47,161.46,31.76]
[1752452674507,40.39078592,161.47,161.46,31.76]
[1752452674991,24.00348592,161.47,161.46,31.76]
[1752452680602,19.01688397,161.47,161.46,31.76]
[1752452680786,24.00348592,161.47,161.46,31.76]
[1752452681398,34.00348592,161.47,161.46,31.76]
[1752452681707,16.78468397,161.46,161.37,1.565]
[1752452681898,4.98660195,161.4,161.35,5.19660195]
[1752452682090,16.78468397,161.38,161.35,5.19660195]
[1752452682600,21.77128592,161.4,161.36,4.98660195]
[1752452682803,16.78468397,161.4,161.36,0.21]
[1752452683109,17.49468397,161.4,161.37,68.62660195]
[1752452683410,16.78468397,161.41,161.38,5.19660195]
[1752452683617,16.78468397,161.43,161.39,4.98660195]
[1752452683786,17.49468397,161.43,161.39,4.98660195]
[1752452683991,17.49468397,161.43,161.38,5.19660195]
[1752452684202,16.78468397,161.41,161.38,5.19660195]
[1752452685289,16.78468397,161.41,161.38,4.98660195]
[1752452685491,16.78468397,161.41,161.38,5.19660195]
[1752452685905,16.78468397,161.41,161.38,4.98660195]
[1752452686717,16.78468397,161.41,161.39,4.98660195]
[1752452687117,16.78468397,161.41,161.39,5.19660195]
[1752452687584,16.78468397,161.41,161.39,4.98660195]
[1752452688887,16.78468397,161.41,161.38,4.98660195]
[1752452689086,17.49468397,161.41,161.39,26.72]
[1752452689287,17.49468397,161.4,161.39,26.72]
[1752452689509,16.78468397,161.4,161.39,26.72]
[1752452691418,16.78468397,161.4,161.39,31.70660195]
[1752452692211,146.7,161.42,161.39,31.70660195]
[1752452692390,146.7,161.42,161.41,4.98660195]
[1752452693793,16.78468397,161.41,161.4,63.52]
[1752452694099,16.78468397,161.41,161.4,68.50660195]
[1752452696617,16.78468397,161.41,161.4,63.52]
[1752452696912,16.78468397,161.41,161.4,68.50660195]
[1752452701994,16.78468397,161.41,161.4,63.52]
[1752452702316,16.78468397,161.41,161.4,68.50660195]
[1752452702514,16.78468397,161.41,161.4,63.52]
[1752452704828,16.81468397,161.41,161.4,63.52]
[1752452705632,16.81468397,161.41,161.4,68.50660195]
[1752452706324,0.03,161.41,161.4,68.71660195]
[1752452706723,0.03,161.41,161.4,68.50660195]
[1752452707407,0.03,161.41,161.4,68.71660195]
[1752452707606,0.03,161.41,161.4,76.94410195]
[1752452709919,0.03,161.41,161.4,65.0945]
[1752452710118,0.03,161.41,161.4,70.08110195]
[1752452710512,0.03,161.41,161.4,70.29110195]
[1752452713026,0.03,161.41,161.4,70.08110195]
[1752452713714,0.03,161.41,161.4,68.50660195]
[1752452715032,0.03,161.41,161.4,68.71660195]
[1752452719015,0.03,161.41,161.4,68.50660195]
[1752452720713,0.03,161.41,161.4,63.52]
[1752452720916,0.03,161.41,161.4,68.50660195]
[1752452722440,0.03,161.41,161.4,68.71660195]
[1752452723045,0.03,161.41,161.4,63.52]
[1752452723348,0.03,161.41,161.4,68.50660195]
[1752452724042,0.03,161.41,161.4,68.71660195]
[1752452725033,0.03,161.41,161.4,70.33490195]
[1752452728730,17.47468397,161.48,161.4,70.33490195]
[1752452728930,17.47468397,161.48,161.46,4.98660195]
[1752452729242,17.47468397,161.48,161.41,0.21]
[1752452729243,17.47468397,161.48,161.47,68.34660195]
[1752452729818,146.7,161.49,161.47,68.55660195]
[1752452730024,0.69,161.51,161.48,4.98660195]
[1752452730240,16.78468397,161.54,161.5,4.98660195]
[1752452730450,21.77128592,161.54,161.51,63.38]
[1752452730635,16.78468397,161.53,161.52,63.38]
[1752452730828,9.8327769,161.53,161.52,63.38]
[1752452731027,5.67660195,161.53,161.52,63.38]
[1752452731241,12.07850195,161.53,161.52,63.38]
[1752452731550,7.0919,161.53,161.52,63.38]
[1752452731734,12.07850195,161.53,161.52,63.38]
[1752452732534,4.84550346,161.53,161.52,63.38]
[1752452732854,0.69,161.53,161.52,63.38]
[1752452733850,136.98148592,161.56,161.52,68.36660195]
[1752452734054,136.98148592,161.56,161.52,74.03]
[1752452734368,136.98148592,161.64,161.55,4.98660195]
[1752452734550,145.74884754,161.63,161.58,4.98660195]
[1752452734753,4.98660195,161.68,161.59,63.5]
[1752452734754,145.74884754,161.62,161.59,63.5]
[1752452735046,8.76736162,161.61,161.59,63.5]
[1752452735249,136.98148592,161.62,161.59,78.48660195]
[1752452735446,136.98148592,161.62,161.59,73.5]
[1752452735642,136.98148592,161.62,161.6,4.98660195]